bitfinex/quotes_SOLUSD_20250822
["timestamp","ask_amount","ask_price","bid_price","bid_amount"]
[1755833775974,0.14216157,182.38,182.36,0.03]
[1755833775975,156.56744024,182.38,182.36,0.03]
[1755833776174,9.91184623,182.37,182.36,0.03]
[1755833776404,10.57184623,182.37,182.36,0.03]
[1755833777898,5.6870039,182.37,182.36,0.03]
[1755833778992,10.57184623,182.37,182.36,0.03]
[1755833781406,5.6870039,182.37,182.36,0.03]
[1755833781986,10.57184623,182.37,182.36,0.03]
[1755833782383,5.6870039,182.37,182.36,0.03]
[1755833784486,10.57184623,182.37,182.33,0.03]
[1755833784689,9.91184623,182.35,182.33,0.03]
[1755833786008,132.4,182.36,182.34,0.71]
[1755833786192,4.88484233,182.35,182.34,0.71]
[1755833786392,5.0270039,182.35,182.34,0.71]
[1755833786595,4.88484233,182.35,182.34,0.71]
[1755833786795,5.0270039,182.35,182.34,0.03]
[1755833790393,5.0270039,182.35,182.34,0.71]
[1755833790821,47.4670039,182.35,182.34,0.71]
[1755833791914,47.4670039,182.35,182.34,0.03]
[1755833793423,48.1270039,182.35,182.34,0.03]
[1755833793630,47.4670039,182.35,182.34,0.03]
[1755833794493,132.4,182.36,182.34,0.71]
[1755833794691,4.88484233,182.35,182.34,0.71]
[1755833794928,5.0270039,182.35,182.34,2.909071]
[1755833796822,5.0270039,182.35,182.34,2.229071]
[1755833797013,5.0270039,182.35,182.34,0.03]
[1755833797220,5.0270039,182.35,182.34,0.71]
[1755833798129,47.4470039,182.35,182.34,0.03]
[1755833798421,47.4470039,182.35,182.34,0.71]
[1755833798932,5.0270039,182.35,182.34,0.71]
[1755833799896,5.6870039,182.35,182.34,0.03]
[1755833801839,5.0270039,182.35,182.34,0.03]
[1755833804019,5.6870039,182.35,182.34,0.03]
[1755833804400,5.0270039,182.35,182.34,0.03]
[1755833805916,5.6870039,182.35,182.34,0.03]
[1755833806229,5.0270039,182.35,182.34,0.03]
[1755833807014,5.7170039,182.35,182.34,0.03]
[1755833807917,10.60184623,182.35,182.34,0.03]
[1755833808310,47.4270039,182.35,182.34,0.03]
[1755833808804,5.0270039,182.35,182.34,0.03]
[1755833809013,47.4070039,182.35,182.34,0.03]
[1755833809338,5.0270039,182.35,182.34,0.03]
[1755833809518,47.4070039,182.35,182.34,0.03]
[1755833809718,5.0270039,182.35,182.34,0.03]
[1755833809936,47.4070039,182.35,182.34,0.03]
[1755833810236,48.0970039,182.35,182.34,0.03]
[1755833810414,52.98184623,182.35,182.34,0.03]
[1755833812537,56.63915212,182.35,182.34,0.03]
[1755833814025,0.14216157,182.34,182.32,0.03]
[1755833814337,48.0970039,182.33,182.32,0.03]
[1755833814521,180.4970039,182.33,182.32,0.03]
[1755833815333,184.15766892,182.33,182.32,0.03]
[1755833815631,183.46766892,182.33,182.32,0.03]
[1755833817045,184.15766892,182.33,182.32,0.03]
[1755833817837,179.27282659,182.33,182.32,0.03]
[1755833818052,184.15766892,182.33,182.32,0.03]
[1755833820435,183.46766892,182.33,182.32,0.03]
[1755833821631,179.62484233,182.33,182.32,0.7]
[1755833821832,180.4570039,182.33,182.32,0.03]
[1755833822234,183.42933664,182.33,182.32,0.03]
[1755833823427,132.54216157,182.33,182.32,0.03]
[1755833823633,179.7670039,182.33,182.32,0.7]
[1755833824830,174.88216157,182.33,182.32,0.7]
[1755833825032,179.7670039,182.33,182.32,0.7]
[1755833826852,180.4570039,182.33,182.32,0.03]
[1755833827047,179.7670039,182.33,182.32,0.03]
[1755833828447,179.7670039,182.33,182.32,0.7]
[1755833828658,132.4,182.33,182.32,0.7]
[1755833829031,137.28484233,182.33,182.32,0.7]
[1755833829248,137.28484233,182.33,182.32,0.03]
[1755833829447,179.8670039,182.33,182.32,0.03]
[1755833831347,179.8670039,182.33,182.32,0.7]
[1755833832456,179.8670039,182.33,182.32,0.03]
[1755833832753,180.5570039,182.33,182.32,0.03]
[1755833833857,184.21726254,182.33,182.32,0.03]
[1755833834246,180.5570039,182.33,182.32,0.03]
[1755833834464,179.8670039,182.33,182.32,0.03]
[1755833835261,180.5570039,182.33,182.32,0.03]
[1755833836035,132.54216157,182.33,182.32,0.03]
[1755833836357,137.4270039,182.33,182.32,0.7]
[1755833836544,174.82,182.33,182.32,0.7]
[1755833836745,179.70484233,182.33,182.32,0.7]
[1755833836940,179.8470039,182.33,182.32,0.03]
[1755833841732,180.5470039,182.33,182.32,0.03]
[1755833841939,184.20812474,182.33,182.32,0.03]
[1755833846169,51.80812474,182.33,182.32,0.03]
[1755833846865,39.59559401,182.31,182.25,2.910038]
[1755833847161,39.59559401,182.31,182.14,13.72552738]
[1755833847162,4.88484233,182.26,182.24,0.71]
[1755833847363,0.14216157,182.25,182.21,7.08536533]
[1755833847539,0.14216157,182.25,182.22,4.88484233]
[1755833847738,0.14216157,182.25,182.22,21.38694633]
[1755833847962,0.14216157,182.25,182.23,0.71]
[1755833848345,5.0270039,182.25,182.23,0.71]
[1755833850147,5.0270039,182.24,182.23,0.71]
[1755833850365,5.0270039,182.24,182.21,26.0]
[1755833850545,0.14216157,182.23,182.21,26.0]
[1755833850740,0.14216157,182.24,182.21,30.88484233]
[1755833851072,0.14216157,182.24,182.22,0.71]
[1755833851842,5.0270039,182.24,182.22,0.71]
[1755833853166,10.0,182.35,182.22,0.71]
[1755833853167,132.4,182.32,182.23,4.88484233]
[1755833853442,132.4,182.32,182.27,4.88484233]
[1755833853443,47.38484233,182.31,182.27,4.88484233]
[1755833853662,0.14216157,182.3,182.28,0.71]
[1755833853869,0.14216157,182.3,182.24,0.28432314]
[1755833854052,42.5,182.31,182.26,4.88484233]
[1755833854250,47.38484233,182.31,182.27,5.59484233]
[1755833854445,4.88484233,182.3,182.28,0.71]
[1755833854647,0.14216157,182.29,182.25,36.37181077]
[1755833854853,0.14216157,182.29,182.25,31.48696844]
[1755833855040,0.14216157,182.29,182.25,52.87028477]
[1755833855273,0.14216157,182.29,182.26,0.71]
[1755833855460,0.14216157,182.29,182.26,5.59484233]
[1755833855652,0.14216157,182.29,182.27,0.71]
[1755833856950,0.14216157,182.29,182.28,0.71]
[1755833858572,4.88484233,182.3,182.28,0.71]
[1755833859275,0.14216157,182.3,182.29,0.71]
[1755833860248,5.0270039,182.3,182.27,0.71]
[1755833860443,5.0870039,182.3,182.28,0.71]
[1755833860875,0.14216157,182.29,182.26,16.497566]
[1755833861054,0.14216157,182.29,182.27,0.71]
[1755833861481,0.14216157,182.29,182.28,0.71]
[1755833861847,5.0270039,182.29,182.26,0.71]
[1755833862052,5.0270039,182.29,182.27,0.71]
[1755833862577,0.14216157,182.29,182.28,0.71]
[1755833863181,0.06,182.3,182.28,31.59484233]
[1755833863385,0.06,182.3,182.29,11.36492991]
[1755833864353,0.06,182.3,182.29,24.96052392]
[1755833865862,0.06,182.3,182.29,20.07568159]
[1755833866051,0.06,182.3,182.29,24.96052392]
[1755833868858,0.06,182.3,182.29,6.19576444]
[1755833869066,0.06,182.3,182.29,11.08060677]
[1755833870573,0.06,182.3,182.29,13.27991977]
[1755833871890,0.06,182.3,182.29,8.39507744]
[1755833872062,0.06,182.3,182.29,13.27991977]
[1755833875862,0.06,182.3,182.29,8.39507744]
[1755833876069,0.06,182.3,182.29,13.27991977]
[1755833876881,0.06,182.3,182.29,8.39507744]
[1755833877077,0.06,182.3,182.29,55.77991977]
[1755833877777,0.06,182.3,182.29,55.80991977]
[1755833879491,0.06,182.3,182.29,56.09424291]
[1755833879786,0.06,182.3,182.29,69.68983692]
[1755833880671,1e-08,182.3,182.29,69.68983692]
[1755833881799,1e-08,182.3,182.29,22.30499459]
[1755833881982,1e-08,182.3,182.29,69.68983692]
[1755833883884,1e-08,182.3,182.29,50.21507744]
[1755833884200,1e-08,182.3,182.29,55.38424291]
[1755833884370,1e-08,182.3,182.29,55.24208134]
[1755833884876,1e-08,182.3,182.29,50.49940058]
[1755833885083,1e-08,182.3,182.29,81.38424291]
[1755833885287,1e-08,182.3,182.29,38.88424291]
[1755833885474,1e-08,182.3,182.29,81.38424291]
[1755833885697,1e-08,182.3,182.29,28.229313]
[1755833885872,0.65000001,182.3,182.29,28.229313]
[1755833887005,0.79216158,182.3,182.29,26.03]
[1755833888900,0.79216158,182.3,182.29,0.03]
[1755833889399,5.67700391,182.3,182.29,0.03]
[1755833889694,0.79216158,182.3,182.29,0.03]
[1755833889898,5.67700391,182.3,182.29,0.03]
[1755833896893,19.27259792,182.3,182.29,0.03]
[1755833897102,19.55692106,182.3,182.29,0.03]
[1755833897824,5.0270039,182.28,182.27,0.03]
[1755833897984,47.5070039,182.28,182.27,0.03]
[1755833898304,48.1870039,182.28,182.27,0.03]
[1755833901411,61.78259791,182.28,182.27,0.03]
[1755833901794,13.73775558,182.27,182.25,0.03]
[1755833901994,142.31184623,182.26,182.25,0.03]
[1755833902218,142.99184623,182.26,182.25,0.03]
[1755833904913,142.99184623,182.26,182.14,4.88484233]
[1755833904914,132.54216157,182.25,182.14,4.88484233]
[1755833905122,0.14216157,182.23,182.2,0.69]
[1755833905428,0.14216157,182.24,182.17,21.99591657]
[1755833905915,0.14216157,182.24,182.18,0.69]
[1755833906497,0.14216157,182.22,182.18,5.57484233]
[1755833906814,0.14216157,182.22,182.17,21.99591657]
[1755833907016,0.14216157,182.2,182.19,0.69]
[1755833908194,5.0270039,182.2,182.19,0.69]
[1755833909310,5.0270039,182.2,182.19,17.197553]
[1755833911828,5.0270039,182.2,182.19,16.507553]
[1755833912116,5.0270039,182.2,182.19,16.537553]
[1755833915628,5.0270039,182.2,182.19,17.227553]
[1755833915923,5.0270039,182.2,182.19,16.537553]
[1755833916241,5.7070039,182.2,182.19,0.03]
[1755833917123,138.1070039,182.2,182.19,0.03]
[1755833921807,19.30259791,182.2,182.19,0.03]
[1755833923237,14.41775558,182.2,182.19,0.03]
[1755833923411,19.30259791,182.2,182.19,0.03]
[1755833928225,14.70207872,182.2,182.19,0.03]
[1755833928431,19.58692105,182.2,182.19,0.03]
[1755833928747,14.02207872,182.19,182.17,0.03]
[1755833928930,61.06259791,182.18,182.17,0.03]
[1755833929448,61.77259791,182.18,182.17,0.03]
[1755833930440,24.50176338,182.18,182.17,0.03]
[1755833930630,62.03692105,182.18,182.17,0.03]
[1755833931050,66.92176338,182.18,182.17,0.03]
[1755833932037,0.42648471,182.17,182.11,0.65]
[1755833932218,5.0270039,182.12,182.11,0.65]
[1755833932417,47.4470039,182.12,182.11,0.65]
[1755833935819,5.0270039,182.12,182.11,0.65]
[1755833936020,0.71,182.18,182.11,0.65]
[1755833936225,4.88484233,182.13,182.11,0.65]
[1755833936530,0.14216157,182.13,182.11,5.677004]
[1755833936731,0.14216157,182.13,182.12,0.65]
[1755833936933,5.0270039,182.13,182.12,0.65]
[1755833940240,5.0270039,182.13,182.09,26.0]
[1755833940241,47.4270039,182.13,182.09,26.0]
[1755833940450,0.14216157,182.11,182.1,11.026847]
[1755833940942,5.0270039,182.11,182.1,0.65]
[1755833941633,0.14216157,182.11,182.1,0.65]
[1755833942034,132.4,182.16,182.1,11.02607078]
[1755833942229,132.4,182.16,182.12,4.88484233]
[1755833942443,47.28484233,182.17,182.13,0.65]
[1755833942643,0.14216157,182.16,182.13,0.65]
[1755833943154,42.4,182.17,182.14,16.511186]
[1755833943455,133.11,182.21,182.15,0.65]
[1755833943456,4.88484233,182.18,182.15,0.65]
[1755833943626,47.28484233,182.19,182.15,0.65]
[1755833943817,0.14216157,182.18,182.15,0.65]
[1755833944023,5.0270039,182.18,182.15,0.65]
[1755833944222,47.28484233,182.19,182.15,0.65]
[1755833944624,47.28484233,182.19,182.16,16.511186]
[1755833944928,0.14216157,182.18,182.17,0.65]
[1755833945330,5.0270039,182.18,182.17,0.65]
[1755833945951,0.14216157,182.18,182.17,0.65]
[1755833946643,5.0270039,182.18,182.16,17.161186]
[1755833946951,5.7370039,182.18,182.15,0.03]
[1755833947138,4.88484233,182.17,182.15,0.03]
[1755833947336,4.88484233,182.17,182.15,17.191186]
[1755833947933,0.14216157,182.16,182.15,16.541186]
[1755833948155,0.14216157,182.16,182.15,0.03]
[1755833948156,47.4270039,182.16,182.15,0.03]
[1755833951433,42.54216157,182.16,182.15,0.03]
[1755833951635,132.4,182.19,182.15,0.03]
[1755833951636,5.0270039,182.18,182.15,0.68]
[1755833951852,5.0270039,182.16,182.15,0.03]
[1755833953338,5.7370039,182.16,182.15,0.03]
[1755833954232,5.0270039,182.16,182.15,0.03]
[1755833955448,47.26484233,182.18,182.15,0.68]
[1755833955656,0.14216157,182.17,182.15,0.68]
[1755833955847,5.0270039,182.17,182.15,17.190278]
[1755833956856,4.88484233,182.16,182.15,17.190278]
[1755833957853,5.0270039,182.16,182.15,17.190278]
[1755833958162,5.0270039,182.16,182.15,0.03]
[1755833960955,0.14216157,182.16,182.15,0.03]
[1755833961141,0.14216157,182.16,182.15,0.7]
[1755833961349,0.14216157,182.16,182.15,17.210278]
[1755833961653,132.4,182.19,182.15,17.210278]
[1755833961857,0.14216157,182.18,182.16,0.67]
[1755833962036,5.0270039,182.18,182.16,0.67]
[1755833962437,5.0270039,182.18,182.16,17.180277]
[1755833963244,5.0270039,182.18,182.16,16.510277]
[1755833963455,5.0270039,182.18,182.16,17.180277]
[1755833965066,5.0270039,182.18,182.16,16.510277]
[1755833965861,5.0270039,182.17,182.16,16.510277]
[1755833966058,5.0270039,182.17,182.15,0.03]
[1755833966260,5.0270039,182.17,182.15,16.540277]
[1755833966438,0.14216157,182.17,182.16,0.67]
[1755833966963,5.0270039,182.17,182.16,16.510278]
[1755833967167,0.14216157,182.17,182.16,17.180278]
[1755833969264,0.14216157,182.17,182.16,0.67]
[1755833971166,0.14216157,182.17,182.15,0.03]
[1755833971462,5.0270039,182.17,182.15,0.7]
[1755833971669,5.0270039,182.17,182.16,0.67]
[1755833971865,0.14216157,182.16,182.15,0.03]
[1755833972046,5.0270039,182.16,182.15,0.03]
[1755833974491,0.14216157,182.16,182.15,0.03]
[1755833974654,5.0270039,182.16,182.15,0.7]
[1755833974855,5.0270039,182.16,182.15,0.03]
[1755833975863,5.7370039,182.16,182.15,0.03]
[1755833977183,10.62184623,182.16,182.15,0.03]
[1755833977981,48.1170039,182.16,182.15,0.03]
[1755833980280,4.88484233,182.16,182.15,0.7]
[1755833980462,47.26484233,182.16,182.15,0.7]
[1755833980665,43.23216157,182.16,182.15,0.03]
[1755833980985,5.0270039,182.16,182.15,0.03]
[1755833981287,47.4070039,182.16,182.15,0.03]
[1755833981990,48.1170039,182.16,182.15,0.03]
[1755833987981,43.23216157,182.16,182.15,0.03]
[1755833988187,48.1170039,182.16,182.15,0.03]
[1755833991988,53.00184623,182.16,182.15,0.03]
[1755833993280,56.66392349,182.16,182.15,0.03]
[1755833993976,53.00184623,182.16,182.15,0.03]
[1755833994498,10.62184623,182.16,182.15,0.03]
[1755833994697,53.00184623,182.16,182.15,0.03]
[1755833997002,56.66309491,182.16,182.15,0.03]
[1755834000400,3.80341025,182.16,182.15,0.72]
[1755834000699,52.29184623,182.16,182.15,0.72]
[1755834000899,55.95309491,182.16,182.15,0.03]
[1755834004378,61.8523262,182.16,182.15,0.03]
[1755834005414,58.19107752,182.16,182.15,0.03]
[1755834005899,15.81107752,182.16,182.15,0.03]
[1755834006079,58.19107752,182.16,182.15,0.03]
[1755834006989,20.19122875,182.16,182.15,0.03]
[1755834007300,62.57122875,182.16,182.15,0.03]
[1755834007999,20.19122875,182.16,182.15,0.03]
[1755834008200,62.55122875,182.16,182.15,0.03]
[1755834010302,76.4311459,182.16,182.15,0.03]
[1755834010509,13.59559401,182.13,182.11,0.03]
[1755834010798,13.59559401,182.13,182.07,0.69]
[1755834010799,49.29609599,182.12,182.07,0.69]
[1755834011001,3.27594476,182.08,182.05,0.69]
[1755834011197,3.27594476,182.06,182.05,0.69]
[1755834013121,5.04229845,182.06,182.05,0.69]
[1755834013486,5.04229845,182.06,182.03,26.0]
[1755834013487,5.04229845,182.06,182.0,0.055]
[1755834013692,0.14216157,182.04,182.03,0.69]
[1755834014009,5.04229845,182.04,182.03,0.69]
[1755834015148,5.04229845,182.04,182.03,0.72]
[1755834016820,5.76229845,182.04,182.03,0.03]
[1755834018412,0.86216157,182.04,182.03,0.03]
[1755834018602,5.04229845,182.04,182.03,0.03]
[1755834018925,5.71229845,182.04,182.03,0.03]
[1755834019296,19.30789246,182.04,182.03,0.03]
[1755834019933,14.40775558,182.04,182.03,0.03]
[1755834020399,19.30789246,182.04,182.03,0.03]
[1755834021012,19.30789246,182.04,182.01,0.03]
[1755834021211,5.04229845,182.02,182.01,0.03]
[1755834021625,5.50229845,182.02,182.01,0.03]
[1755834022323,5.04229845,182.02,182.01,0.69]
[1755834022500,47.42229845,182.02,182.01,0.03]
[1755834023799,47.88229845,182.02,182.01,0.03]
[1755834024425,47.42229845,182.02,182.01,0.03]
[1755834024630,47.88229845,182.02,182.01,0.03]
[1755834027704,47.42229845,182.02,182.01,0.03]
[1755834028515,48.09229845,182.02,182.01,0.03]
[1755834029129,47.42229845,182.02,182.01,0.03]
[1755834030033,5.04229845,182.02,182.01,0.03]
[1755834030241,47.42229845,182.02,182.01,0.03]
[1755834031031,13.73775558,182.03,182.01,0.69]
[1755834031222,47.42229845,182.02,182.01,0.03]
[1755834031421,47.28013688,182.02,182.01,0.03]
[1755834031819,5.04229845,182.02,182.01,0.69]
[1755834032134,4.90013688,182.02,182.01,0.69]
[1755834032312,42.38,182.02,182.01,0.69]
[1755834032512,42.52216157,182.02,182.01,0.69]
[1755834032914,3.27896113,182.02,182.01,0.69]
[1755834033924,3.27896113,182.02,182.01,0.03]
[1755834034329,5.04567247,182.02,182.01,0.03]
[1755834035951,0.14216157,182.02,182.01,0.03]
[1755834036133,5.04567247,182.02,182.01,0.03]
[1755834036341,5.71567247,182.02,182.01,0.03]
[1755834038449,5.04567247,182.02,182.01,0.03]
[1755834039650,0.14216157,182.02,182.01,0.03]
[1755834039860,5.04567247,182.02,182.01,0.03]
[1755834041177,14.24775558,182.02,182.01,0.03]
[1755834041328,19.43558962,182.02,182.01,0.03]
[1755834041645,45.43558962,182.02,182.01,0.03]
[1755834042827,14.02207872,182.01,182.0,0.055]
[1755834043027,66.77910052,182.01,182.0,0.055]
[1755834043240,56.97207872,182.01,181.99,0.03]
[1755834043444,56.46207872,182.01,181.99,0.03]
[1755834043854,0.42648471,182.01,181.99,0.03]
[1755834044029,188.65775558,182.0,181.99,0.03]
[1755834044335,23.82910052,182.0,181.99,0.03]
[1755834044534,66.36910052,182.0,181.99,0.03]
[1755834044748,61.46558962,182.0,181.99,0.03]
[1755834045322,61.52558962,182.0,181.99,0.03]
[1755834045928,87.52558962,182.0,181.99,0.03]
[1755834046128,44.92558962,182.0,181.99,0.03]
[1755834046357,87.52558962,182.0,181.99,0.03]
[1755834047343,92.42910052,182.0,181.99,0.03]
[1755834047935,92.42910052,182.0,181.97,0.03]
[1755834047936,23.82910052,181.98,181.97,0.03]
[1755834048136,66.42910052,181.98,181.97,0.03]
[1755834050962,13.73775558,181.97,181.93,0.7]
[1755834051152,0.14216157,181.92,181.91,0.7]
[1755834051359,47.62567247,181.92,181.91,0.7]
[1755834051672,47.62567247,181.92,181.87,16.537582]
[1755834051880,5.04567247,181.88,181.87,16.537582]
[1755834052181,5.04567247,181.88,181.83,26.0]
[1755834052341,0.14216157,181.88,181.86,16.538494]
[1755834052536,5.04567247,181.88,181.87,0.7]
[1755834053346,0.14216157,181.88,181.87,0.7]
[1755834055242,5.04567247,181.88,181.87,0.7]
[1755834055867,0.14216157,181.88,181.87,0.7]
[1755834056376,132.4,181.92,181.87,5.6035109]
[1755834056594,4.9035109,181.9,181.87,0.7]
[1755834056885,0.14216157,181.9,181.88,0.7]
[1755834057092,0.14216157,181.89,181.85,4.9035109]
[1755834057659,0.14216157,181.89,181.86,0.7]
[1755834057866,0.14216157,181.88,181.86,0.7]
[1755834060093,0.14216157,181.89,181.86,0.7]
[1755834060560,0.14216157,181.89,181.86,5.6035109]
[1755834060759,0.14216157,181.89,181.86,4.9035109]
[1755834060985,0.14216157,181.89,181.87,0.7]
[1755834061356,0.14216157,181.89,181.88,0.7]
[1755834061786,5.04567247,181.89,181.88,0.7]
[1755834062155,0.14216157,181.89,181.88,0.7]
[1755834062357,132.4,181.92,181.88,0.7]
[1755834062596,135.54120316,181.92,181.88,0.7]
[1755834062903,135.54120316,181.92,181.87,8.63942379]
[1755834062904,0.14216157,181.9,181.87,16.53667]
[1755834063074,0.14216157,181.9,181.88,0.7]
[1755834064189,0.14216157,181.9,181.87,16.53667]
[1755834064369,0.14216157,181.9,181.89,0.7]
[1755834065180,45.90336473,181.91,181.89,0.7]
[1755834065490,42.76216157,181.91,181.9,0.7]
[1755834065676,42.76216157,181.91,181.88,3.84120316]
[1755834065993,42.76216157,181.91,181.89,0.7]
[1755834066874,42.76216157,181.91,181.87,16.53667]
[1755834067084,42.76216157,181.91,181.88,0.7]
[1755834067265,42.76216157,181.91,181.89,0.7]
[1755834068201,42.76216157,181.91,181.88,3.14120316]
[1755834068202,42.74216157,181.91,181.9,0.7]
[1755834068491,42.74216157,181.91,181.88,3.14120316]
[1755834068994,42.74216157,181.91,181.89,0.7]
[1755834069989,42.74216157,181.91,181.88,0.7]
[1755834070286,46.46336473,181.91,181.86,3.84120316]
[1755834070491,46.46336473,181.91,181.87,0.7]
[1755834070992,45.88336473,181.91,181.88,0.7]
[1755834071467,3.28336473,181.91,181.88,0.7]
[1755834071968,42.62,181.9,181.88,0.7]
[1755834072169,42.62,181.9,181.87,3.84120316]
[1755834072698,42.62,181.9,181.87,0.7]
[1755834072890,42.62,181.9,181.87,3.84120316]
[1755834073895,42.62,181.9,181.88,0.7]
[1755834075000,42.62,181.9,181.87,3.84120316]
[1755834075686,0.14216157,181.89,181.86,16.53667]
[1755834075873,42.6,181.88,181.85,3.84120316]
[1755834076066,42.6,181.88,181.85,17.23667]
[1755834076300,42.6,181.88,181.85,20.37787316]
[1755834077467,0.14216157,181.89,181.86,3.83120316]
[1755834077671,0.14216157,181.87,181.86,3.14120316]
[1755834078369,0.14216157,181.87,181.86,3.83120316]
[1755834079290,0.14216157,181.87,181.86,0.69]
[1755834079800,0.14216157,181.87,181.86,3.83120316]
[1755834079998,0.14216157,181.87,181.86,0.69]
[1755834080212,0.14216157,181.87,181.85,20.36787316]
[1755834080379,0.14216157,181.87,181.86,0.69]
[1755834080914,0.14216157,181.88,181.85,16.53667]
[1755834081084,0.14216157,181.88,181.84,0.72]
[1755834081285,3.37336473,181.88,181.86,0.03]
[1755834081999,0.23216157,181.88,181.86,0.03]
[1755834082784,3.37336473,181.88,181.86,0.03]
[1755834083302,3.28336473,181.88,181.86,0.03]
[1755834084009,3.37336473,181.88,181.86,0.03]
[1755834084781,3.14120316,181.87,181.86,0.03]
[1755834085009,0.23216157,181.87,181.86,0.03]
[1755834085185,3.37336473,181.87,181.86,0.03]
[1755834085887,43.11112031,181.87,181.86,0.03]
[1755834086096,43.25328188,181.87,181.86,0.03]
[1755834086289,39.73775558,181.87,181.86,0.03]
[1755834086513,29.28336473,181.87,181.86,0.03]
[1755834086713,71.84336473,181.87,181.86,0.03]
[1755834086918,72.03336473,181.87,181.86,0.03]
[1755834087112,71.84336473,181.87,181.86,0.03]
[1755834087784,3.28336473,181.87,181.86,0.72]
[1755834087985,0.14216157,181.87,181.86,0.72]
[1755834088210,42.62,181.88,181.86,0.72]
[1755834088418,42.62,181.88,181.87,0.69]
[1755834088716,45.90336473,181.88,181.87,0.69]
[1755834089118,0.7,181.91,181.84,13.86097385]
[1755834089321,13.59559401,181.93,181.86,3.14120316]
[1755834089322,42.6,181.9,181.86,3.14120316]
[1755834089691,0.14216157,181.87,181.83,22.03716837]
[1755834089903,0.14216157,181.87,181.84,3.14120316]
[1755834090241,42.6,181.9,181.83,5.49958737]
[1755834090423,42.6,181.9,181.86,4.90714974]
[1755834090610,0.7,181.92,181.87,5.49843294]
[1755834090918,4.77743938,181.95,181.87,10.40558268]
[1755834091120,55.95546397,181.94,181.89,4.90714974]
[1755834091419,4.90714974,181.92,181.9,0.69]
[1755834091630,4.90714974,181.92,181.89,0.69]
[1755834091798,5.04931131,181.9,181.82,3.141203]
[1755834092123,5.04931131,181.9,181.85,0.69]
[1755834092124,5.04931131,181.88,181.85,0.69]
[1755834092295,0.14216157,181.88,181.85,0.69]
[1755834092497,132.4,181.94,181.86,4.90714974]
[1755834092809,0.14216157,181.9,181.87,0.69]
[1755834092998,5.04931131,181.9,181.87,0.69]
[1755834093510,4.90714974,181.89,181.87,0.69]
[1755834093823,4.90714974,181.89,181.85,6.1889504]
[1755834093991,4.90714974,181.89,181.86,0.69]
[1755834094193,0.14216157,181.9,181.86,5.59714974]
[1755834094412,3.67188021,181.92,181.88,4.90714974]
[1755834094609,4.90714974,181.93,181.89,0.69]
[1755834094796,7.75285717,181.92,181.89,0.69]
[1755834095120,0.14216157,181.89,181.85,0.69]
[1755834095309,4.90714974,181.88,181.85,0.19]
[1755834095908,4.90714974,181.88,181.85,5.68894799]
[1755834096309,4.90714974,181.88,181.85,0.19]
[1755834097126,4.90714974,181.88,181.85,5.68888995]
[1755834097629,4.90714974,181.88,181.85,0.19]
[1755834097837,4.90714974,181.88,181.84,6.18928774]
[1755834098816,5.60714974,181.88,181.83,5.52964252]
[1755834099133,5.60714974,181.88,181.84,0.69]
[1755834099330,5.04931131,181.89,181.84,4.90714974]
[1755834099625,5.74931131,181.89,181.85,0.69]
[1755834099834,4.90714974,181.88,181.85,0.69]
[1755834100418,5.60714974,181.88,181.83,6.21964252]
[1755834100806,5.60714974,181.88,181.84,0.69]
[1755834101025,5.60714974,181.88,181.85,5.49903766]
[1755834101698,0.7,181.87,181.83,10.466792]
[1755834101930,4.90714974,181.88,181.84,0.69]
[1755834102127,0.7,181.87,181.83,11.156792]
[1755834102441,0.84216157,181.89,181.84,0.69]
[1755834102611,5.60714974,181.88,181.84,0.69]
[1755834102928,5.60714974,181.88,181.83,15.37394174]
[1755834102929,0.7,181.87,181.83,15.37394174]